[Event "Titled Tuesday Blitz August 1 Late 2023"]
[White "Dominguez Rincon, Miller Duvan"]
[Black "KorolDimitriy75"]
[WhiteFideId "4406583"]
[WhiteElo "2060"]
[BlackElo "2356"]
[Result "0-1"]
[Round "11"]
[TimeControl "180+1"]
[Date "2023.08.01"]
[WhiteClock "0:00:00"]
[BlackClock "0:00:31"]
[Board "90"]

1. e4 {[%clk 0:02:51]}  c5 {[%clk 0:02:59]} 2. Nf3 {[%clk 0:02:50]}  d6 {[%clk 0:02:59]} 3. d4 {[%clk 0:02:44]}  cxd4 {[%clk 0:03:00]} 4. Nxd4 {[%clk 0:02:43]}  Nf6 {[%clk 0:03:00]} 5. Nc3 {[%clk 0:02:42]}  g6 {[%clk 0:03:01]} 6. Be3 {[%clk 0:02:38]}  Bg7 {[%clk 0:03:01]} 7. f3 {[%clk 0:02:28]}  O-O {[%clk 0:03:01]} 8. Qd2 {[%clk 0:02:28]}  Nc6 {[%clk 0:03:02]} 9. Bc4 {[%clk 0:02:27]}  Bd7 {[%clk 0:03:02]} 10. O-O-O {[%clk 0:02:26]}  Qa5 {[%clk 0:03:01]} 11. Bb3 {[%clk 0:02:22]}  Rfc8 {[%clk 0:03:01]} 12. Kb1 {[%clk 0:02:22]}  Ne5 {[%clk 0:03:01]} 13. Qe2 {[%clk 0:02:19]}  Rab8 {[%clk 0:02:40]} 14. g4 {[%clk 0:02:18]}  b5 {[%clk 0:02:39]} 15. h4 {[%clk 0:02:18]}  Nc4 {[%clk 0:02:37]} 16. Bc1 {[%clk 0:02:04]}  Qb6 {[%clk 0:02:04]} 17. g5 {[%clk 0:02:00]}  Nh5 {[%clk 0:02:03]} 18. Nd5 {[%clk 0:01:59]}  Qd8 {[%clk 0:02:03]} 19. Qe1 {[%clk 0:01:26]}  e6 {[%clk 0:01:55]} 20. Ne3 {[%clk 0:01:22]}  a5 {[%clk 0:01:50]} 21. Bxc4 {[%clk 0:01:19]}  bxc4 {[%clk 0:01:47]} 22. c3 {[%clk 0:01:10]}  Qb6 {[%clk 0:01:26]} 23. Ng4 {[%clk 0:01:08]}  Rb7 {[%clk 0:01:11]} 24. Rh2 {[%clk 0:01:06]}  Rcb8 {[%clk 0:01:09]} 25. f4 {[%clk 0:01:05]}  e5 {[%clk 0:01:06]} 26. Ne3 {[%clk 0:00:23]}  exd4 {[%clk 0:01:00]} 27. Nd5 {[%clk 0:00:24]}  Qc5 {[%clk 0:00:47]} 28. f5 {[%clk 0:00:12]}  gxf5 {[%clk 0:00:34]} 29. Ne7+ {[%clk 0:00:11]}  Kf8 {[%clk 0:00:32]} 30. exf5 {[%clk 0:00:08]}  Bxf5+ {[%clk 0:00:30]} 31. Nxf5 {[%clk 0:00:06]}  Qxf5+ {[%clk 0:00:31]} 32. Ka1 {[%clk 0:00:00]}  dxc3 {[%clk 0:00:31]} 0-1


[Site "https://www.chess.com"]

[Event "Titled Tuesday Blitz August 1 Late 2023"]
[White "Grinev, Valeriy"]
[Black "Osmonbekov, Talaibek"]
[WhiteFideId "14117517"]
[BlackFideId "2017253"]
[WhiteElo "2493"]
[BlackElo "2218"]
[Result "1-0"]
[Round "11"]
[TimeControl "180+1"]
[Date "2023.08.01"]
[WhiteClock "0:01:50"]
[BlackClock "0:00:39"]
[Board "91"]

1. Nf3 {[%clk 0:03:00]}  f5 {[%clk 0:02:57]} 2. d4 {[%clk 0:03:00]}  Nf6 {[%clk 0:02:58]} 3. c4 {[%clk 0:03:01]}  e6 {[%clk 0:02:58]} 4. Nc3 {[%clk 0:03:01]}  Bb4 {[%clk 0:02:59]} 5. Bd2 {[%clk 0:03:01]}  O-O {[%clk 0:02:59]} 6. Qb3 {[%clk 0:02:59]}  a5 {[%clk 0:02:58]} 7. a3 {[%clk 0:02:58]}  Bxc3 {[%clk 0:02:56]} 8. Bxc3 {[%clk 0:02:59]}  d6 {[%clk 0:02:54]} 9. e3 {[%clk 0:02:59]}  a4 {[%clk 0:02:54]} 10. Qc2 {[%clk 0:02:59]}  Qe8 {[%clk 0:02:46]} 11. Bd3 {[%clk 0:02:58]}  g6 {[%clk 0:02:39]} 12. h4 {[%clk 0:02:56]}  Nh5 {[%clk 0:02:33]} 13. Ng5 {[%clk 0:02:48]}  Nc6 {[%clk 0:02:19]} 14. O-O-O {[%clk 0:02:43]}  e5 {[%clk 0:02:13]} 15. dxe5 {[%clk 0:02:39]}  Nxe5 {[%clk 0:02:09]} 16. Be2 {[%clk 0:02:39]}  Be6 {[%clk 0:02:02]} 17. Nxe6 {[%clk 0:02:38]}  Qxe6 {[%clk 0:02:02]} 18. Bxh5 {[%clk 0:02:34]}  gxh5 {[%clk 0:02:01]} 19. c5 {[%clk 0:02:35]}  Nc4 {[%clk 0:01:27]} 20. cxd6 {[%clk 0:02:19]}  Nxd6 {[%clk 0:01:25]} 21. Rh3 {[%clk 0:02:18]}  Rf7 {[%clk 0:01:06]} 22. Rg3+ {[%clk 0:02:16]}  Kf8 {[%clk 0:01:06]} 23. Rg5 {[%clk 0:02:06]}  Ne4 {[%clk 0:01:01]} 24. Rxh5 {[%clk 0:02:06]}  Nxf2 {[%clk 0:01:00]} 25. Qxf2 {[%clk 0:02:05]}  Re8 {[%clk 0:00:54]} 26. Bb4+ {[%clk 0:01:54]}  Kg7 {[%clk 0:00:52]} 27. Qg3+ {[%clk 0:01:51]}  Qg6 {[%clk 0:00:39]} 28. Rg5 {[%clk 0:01:50]} 1-0


[Site "https://www.chess.com"]

[Event "Titled Tuesday Blitz August 1 Late 2023"]
[White "Rama, Tejas"]
[Black "Vaglio Munoz, Jaime"]
[WhiteFideId "30907381"]
[BlackFideId "6500145"]
[WhiteElo "2405"]
[BlackElo "2269"]
[Result "0-1"]
[Round "11"]
[TimeControl "180+1"]
[Date "2023.08.01"]
[WhiteClock "0:00:08"]
[BlackClock "0:00:25"]
[Board "92"]

1. d4 {[%clk 0:02:54]}  c6 {[%clk 0:02:59]} 2. e4 {[%clk 0:02:53]}  b5 {[%clk 0:02:58]} 3. c4 {[%clk 0:02:50]}  bxc4 {[%clk 0:02:58]} 4. Bxc4 {[%clk 0:02:50]}  d5 {[%clk 0:02:59]} 5. exd5 {[%clk 0:02:45]}  cxd5 {[%clk 0:03:00]} 6. Bb5+ {[%clk 0:02:31]}  Bd7 {[%clk 0:02:59]} 7. Bd3 {[%clk 0:02:32]}  Qb6 {[%clk 0:02:56]} 8. Nf3 {[%clk 0:02:29]}  Bb5 {[%clk 0:02:51]} 9. O-O {[%clk 0:02:18]}  Bxd3 {[%clk 0:02:50]} 10. Qxd3 {[%clk 0:02:17]}  e6 {[%clk 0:02:50]} 11. Nc3 {[%clk 0:02:12]}  Nf6 {[%clk 0:02:49]} 12. Bf4 {[%clk 0:02:02]}  Be7 {[%clk 0:02:48]} 13. Nb5 {[%clk 0:02:02]}  Na6 {[%clk 0:02:40]} 14. Ne5 {[%clk 0:01:30]}  O-O {[%clk 0:02:35]} 15. Bg5 {[%clk 0:01:29]}  Nb4 {[%clk 0:02:23]} 16. Qe2 {[%clk 0:01:20]}  a6 {[%clk 0:02:11]} 17. Nc3 {[%clk 0:01:03]}  Qxd4 {[%clk 0:02:09]} 18. Nd7 {[%clk 0:00:56]}  Rfd8 {[%clk 0:01:53]} 19. Rfd1 {[%clk 0:00:42]}  Qc4 {[%clk 0:01:52]} 20. Qxc4 {[%clk 0:00:35]}  dxc4 {[%clk 0:01:53]} 21. Nb6 {[%clk 0:00:35]}  Rdb8 {[%clk 0:01:43]} 22. Nxa8 {[%clk 0:00:33]}  Rxa8 {[%clk 0:01:43]} 23. Rac1 {[%clk 0:00:28]}  Nd3 {[%clk 0:01:41]} 24. Rc2 {[%clk 0:00:28]}  h6 {[%clk 0:01:40]} 25. Bh4 {[%clk 0:00:27]}  Rb8 {[%clk 0:01:38]} 26. b3 {[%clk 0:00:19]}  cxb3 {[%clk 0:01:37]} 27. axb3 {[%clk 0:00:20]}  Nc5 {[%clk 0:01:21]} 28. Bxf6 {[%clk 0:00:14]}  gxf6 {[%clk 0:01:17]} 29. Rb1 {[%clk 0:00:08]}  Nd3 {[%clk 0:01:11]} 30. Ne4 {[%clk 0:00:07]}  Nb4 {[%clk 0:01:09]} 31. Rc7 {[%clk 0:00:07]}  Kf8 {[%clk 0:01:08]} 32. Rd1 {[%clk 0:00:05]}  Nd5 {[%clk 0:01:07]} 33. Ra7 {[%clk 0:00:05]}  Rxb3 {[%clk 0:01:04]} 34. Rxa6 {[%clk 0:00:06]}  Rb4 {[%clk 0:01:04]} 35. Ng3 {[%clk 0:00:05]}  f5 {[%clk 0:01:03]} 36. h3 {[%clk 0:00:04]}  Kg7 {[%clk 0:01:02]} 37. Ra8 {[%clk 0:00:05]}  Kf6 {[%clk 0:01:01]} 38. Ra6 {[%clk 0:00:05]}  Nf4 {[%clk 0:00:56]} 39. Nf1 {[%clk 0:00:03]}  h5 {[%clk 0:00:56]} 40. Ra3 {[%clk 0:00:03]}  h4 {[%clk 0:00:55]} 41. Rf3 {[%clk 0:00:04]}  Ng6 {[%clk 0:00:53]} 42. Rc3 {[%clk 0:00:05]}  Ne5 {[%clk 0:00:51]} 43. Nd2 {[%clk 0:00:05]}  Rd4 {[%clk 0:00:50]} 44. Rc2 {[%clk 0:00:06]}  Bb4 {[%clk 0:00:48]} 45. f3 {[%clk 0:00:07]}  Kg6 {[%clk 0:00:41]} 46. Kf2 {[%clk 0:00:07]}  Ba5 {[%clk 0:00:39]} 47. Ke2 {[%clk 0:00:07]}  Nd3 {[%clk 0:00:39]} 48. Ke3 {[%clk 0:00:06]}  Bb6 {[%clk 0:00:37]} 49. Nb3 {[%clk 0:00:05]}  Rd6+ {[%clk 0:00:34]} 50. Kd2 {[%clk 0:00:05]}  Nb4+ {[%clk 0:00:32]} 51. Kc1 {[%clk 0:00:05]}  Rxd1+ {[%clk 0:00:32]} 52. Kxd1 {[%clk 0:00:05]}  Nxc2 {[%clk 0:00:33]} 53. Kxc2 {[%clk 0:00:06]}  Kg5 {[%clk 0:00:29]} 54. Kd3 {[%clk 0:00:07]}  Kf4 {[%clk 0:00:29]} 55. Ke2 {[%clk 0:00:07]}  Kg3 {[%clk 0:00:29]} 56. Kf1 {[%clk 0:00:08]}  e5 {[%clk 0:00:29]} 57. Nc1 {[%clk 0:00:08]}  Kf4 {[%clk 0:00:27]} 58. Ne2+ {[%clk 0:00:08]}  Ke3 {[%clk 0:00:27]} 59. Nc3 {[%clk 0:00:08]}  Bd4 {[%clk 0:00:27]} 60. Nd5+ {[%clk 0:00:08]}  Kd3 {[%clk 0:00:27]} 61. Ne7 {[%clk 0:00:09]}  e4 {[%clk 0:00:26]} 62. Nxf5 {[%clk 0:00:08]}  e3 {[%clk 0:00:25]} 63. Nxd4 {[%clk 0:00:08]}  Kxd4 {[%clk 0:00:24]} 64. Ke2 {[%clk 0:00:08]}  f5 {[%clk 0:00:25]} 65. Ke1 {[%clk 0:00:06]}  f4 {[%clk 0:00:25]} 66. Kd1 {[%clk 0:00:07]}  Kd3 {[%clk 0:00:25]} 67. Ke1 {[%clk 0:00:07]}  Kc2 {[%clk 0:00:24]} 68. Ke2 {[%clk 0:00:07]}  Kc1 {[%clk 0:00:24]} 69. Ke1 {[%clk 0:00:08]}  Kc2 {[%clk 0:00:24]} 70. Ke2 {[%clk 0:00:08]}  Kc3 {[%clk 0:00:24]} 71. Ke1 {[%clk 0:00:09]}  Kd3 {[%clk 0:00:24]} 72. Kd1 {[%clk 0:00:10]}  e2+ {[%clk 0:00:24]} 73. Ke1 {[%clk 0:00:10]}  Ke3 {[%clk 0:00:24]} 74. g4 {[%clk 0:00:09]}  fxg3 {[%clk 0:00:24]} 75. f4 {[%clk 0:00:08]}  g2 {[%clk 0:00:25]} 0-1


[Site "https://www.chess.com"]

[Event "Titled Tuesday Blitz August 1 Late 2023"]
[White "Vila Dupla, Aurelio"]
[Black "Shapiro, Daniel"]
[WhiteFideId "2203383"]
[BlackFideId "2001780"]
[WhiteElo "2169"]
[BlackElo "2357"]
[Result "0-1"]
[Round "11"]
[TimeControl "180+1"]
[Date "2023.08.01"]
[WhiteClock "0:00:15"]
[BlackClock "0:01:34"]
[Board "94"]

1. Nf3 {[%clk 0:03:00]}  Nf6 {[%clk 0:02:58]} 2. d4 {[%clk 0:02:58]}  b6 {[%clk 0:02:57]} 3. g3 {[%clk 0:02:57]}  d5 {[%clk 0:02:54]} 4. Bg2 {[%clk 0:02:57]}  e6 {[%clk 0:02:54]} 5. O-O {[%clk 0:02:57]}  Be7 {[%clk 0:02:53]} 6. c4 {[%clk 0:02:55]}  c6 {[%clk 0:02:54]} 7. b3 {[%clk 0:02:54]}  O-O {[%clk 0:02:53]} 8. Bb2 {[%clk 0:02:54]}  Nbd7 {[%clk 0:02:53]} 9. Nbd2 {[%clk 0:02:54]}  Bb7 {[%clk 0:02:53]} 10. Qc2 {[%clk 0:02:55]}  Rc8 {[%clk 0:02:52]} 11. e4 {[%clk 0:02:55]}  Qc7 {[%clk 0:02:47]} 12. e5 {[%clk 0:02:43]}  Ne8 {[%clk 0:02:47]} 13. cxd5 {[%clk 0:02:40]}  cxd5 {[%clk 0:02:44]} 14. Qxc7 {[%clk 0:02:40]}  Nxc7 {[%clk 0:02:43]} 15. Rfc1 {[%clk 0:02:34]}  Nb5 {[%clk 0:02:35]} 16. a4 {[%clk 0:02:33]}  Nc7 {[%clk 0:02:31]} 17. Ba3 {[%clk 0:02:19]}  Bxa3 {[%clk 0:02:28]} 18. Rxa3 {[%clk 0:02:20]}  Na6 {[%clk 0:02:28]} 19. Raa1 {[%clk 0:02:14]}  Nb4 {[%clk 0:02:28]} 20. Bf1 {[%clk 0:02:08]}  Ba6 {[%clk 0:02:20]} 21. Bxa6 {[%clk 0:02:04]}  Nxa6 {[%clk 0:02:20]} 22. Ne1 {[%clk 0:01:53]}  Nb4 {[%clk 0:02:19]} 23. Ndf3 {[%clk 0:01:51]}  f6 {[%clk 0:02:15]} 24. Rxc8 {[%clk 0:01:28]}  Rxc8 {[%clk 0:02:14]} 25. exf6 {[%clk 0:01:28]}  gxf6 {[%clk 0:02:13]} 26. a5 {[%clk 0:01:28]}  b5 {[%clk 0:02:08]} 27. Kg2 {[%clk 0:01:28]}  Rc3 {[%clk 0:02:06]} 28. Rb1 {[%clk 0:01:21]}  Nc6 {[%clk 0:01:55]} 29. b4 {[%clk 0:01:10]}  Ndb8 {[%clk 0:01:52]} 30. Rb2 {[%clk 0:00:48]}  e5 {[%clk 0:01:48]} 31. dxe5 {[%clk 0:00:47]}  fxe5 {[%clk 0:01:48]} 32. Rc2 {[%clk 0:00:46]}  Rxc2 {[%clk 0:01:39]} 33. Nxc2 {[%clk 0:00:45]}  Na6 {[%clk 0:01:37]} 34. Kf1 {[%clk 0:00:38]}  Kf7 {[%clk 0:01:37]} 35. Ke2 {[%clk 0:00:38]}  Kf6 {[%clk 0:01:38]} 36. Kd2 {[%clk 0:00:34]}  Naxb4 {[%clk 0:01:37]} 37. Nxb4 {[%clk 0:00:27]}  Nxb4 {[%clk 0:01:37]} 38. h4 {[%clk 0:00:26]}  Nc6 {[%clk 0:01:36]} 39. Ng5 {[%clk 0:00:15]}  h6 {[%clk 0:01:34]} 0-1


[Site "https://www.chess.com"]

[Event "Titled Tuesday Blitz August 1 Late 2023"]
[White "Thiel, Thomas"]
[Black "Rodriguez Santiago, Jaime"]
[WhiteFideId "4615964"]
[BlackFideId "3100898"]
[WhiteElo "2263"]
[BlackElo "2323"]
[Result "0-1"]
[Round "11"]
[TimeControl "180+1"]
[Date "2023.08.01"]
[WhiteClock "0:00:12"]
[BlackClock "0:00:05"]
[Board "98"]

1. e4 {[%clk 0:03:00]}  c6 {[%clk 0:02:58]} 2. d4 {[%clk 0:02:59]}  d5 {[%clk 0:02:58]} 3. exd5 {[%clk 0:02:59]}  cxd5 {[%clk 0:02:58]} 4. c4 {[%clk 0:02:59]}  Nf6 {[%clk 0:02:56]} 5. Nc3 {[%clk 0:03:00]}  e6 {[%clk 0:02:56]} 6. Nf3 {[%clk 0:02:59]}  Be7 {[%clk 0:02:56]} 7. cxd5 {[%clk 0:02:59]}  Nxd5 {[%clk 0:02:55]} 8. Bd3 {[%clk 0:02:59]}  O-O {[%clk 0:02:52]} 9. O-O {[%clk 0:02:59]}  Nc6 {[%clk 0:02:52]} 10. Re1 {[%clk 0:02:57]}  Nf6 {[%clk 0:02:34]} 11. a3 {[%clk 0:02:57]}  b6 {[%clk 0:02:32]} 12. Bf4 {[%clk 0:02:31]}  Bb7 {[%clk 0:02:29]} 13. Rc1 {[%clk 0:02:31]}  Rc8 {[%clk 0:02:28]} 14. Bb1 {[%clk 0:02:30]}  Na5 {[%clk 0:02:21]} 15. Ne5 {[%clk 0:02:25]}  Nc4 {[%clk 0:01:50]} 16. Nxc4 {[%clk 0:02:24]}  Rxc4 {[%clk 0:01:49]} 17. Be5 {[%clk 0:02:24]}  g6 {[%clk 0:01:35]} 18. Qd3 {[%clk 0:02:16]}  Rc8 {[%clk 0:01:27]} 19. Rcd1 {[%clk 0:02:16]}  Nd5 {[%clk 0:01:25]} 20. Ne4 {[%clk 0:02:13]}  f5 {[%clk 0:01:21]} 21. Nc3 {[%clk 0:02:08]}  Nxc3 {[%clk 0:01:17]} 22. bxc3 {[%clk 0:02:09]}  Qd5 {[%clk 0:01:15]} 23. f3 {[%clk 0:01:46]}  Bxa3 {[%clk 0:01:11]} 24. c4 {[%clk 0:01:44]}  Qa5 {[%clk 0:01:04]} 25. d5 {[%clk 0:01:43]}  exd5 {[%clk 0:01:02]} 26. cxd5 {[%clk 0:01:44]}  Bb4 {[%clk 0:01:02]} 27. Rf1 {[%clk 0:01:31]}  Ba6 {[%clk 0:01:01]} 28. Qb3 {[%clk 0:01:15]}  Bc4 {[%clk 0:01:00]} 29. Qb2 {[%clk 0:01:07]}  Bxf1 {[%clk 0:00:56]} 30. Rxf1 {[%clk 0:00:58]}  Qc5+ {[%clk 0:00:45]} 31. Kh1 {[%clk 0:00:56]}  Rfe8 {[%clk 0:00:42]} 32. Bh8 {[%clk 0:00:47]}  Bc3 {[%clk 0:00:42]} 33. Bxc3 {[%clk 0:00:43]}  Qxc3 {[%clk 0:00:42]} 34. Qa2 {[%clk 0:00:33]}  Qc4 {[%clk 0:00:37]} 35. d6 {[%clk 0:00:33]}  Kg7 {[%clk 0:00:18]} 36. Qb2+ {[%clk 0:00:28]}  Qc3 {[%clk 0:00:10]} 37. Qa2 {[%clk 0:00:27]}  Re1 {[%clk 0:00:08]} 38. Qxa7+ {[%clk 0:00:23]}  Kh6 {[%clk 0:00:07]} 39. Qa6 {[%clk 0:00:19]}  Rxf1+ {[%clk 0:00:05]} 40. Qxf1 {[%clk 0:00:12]}  Qc1 {[%clk 0:00:05]} 0-1


[Site "https://www.chess.com"]

[Event "Titled Tuesday Blitz August 1 Late 2023"]
[White "The_Straightforward_Rook"]
[Black "Petersson, Kjell"]
[BlackFideId "1705148"]
[WhiteElo "2303"]
[BlackElo "2201"]
[Result "0-1"]
[Round "11"]
[TimeControl "180+1"]
[Date "2023.08.01"]
[WhiteClock "0:02:23"]
[BlackClock "0:01:27"]
[Board "101"]

1. e4 {[%clk 0:02:59]}  c5 {[%clk 0:02:59]} 2. Nf3 {[%clk 0:02:56]}  d6 {[%clk 0:03:00]} 3. g3 {[%clk 0:02:55]}  Nf6 {[%clk 0:02:58]} 4. Bg2 {[%clk 0:02:56]}  Nxe4 {[%clk 0:02:52]} 5. O-O {[%clk 0:02:55]}  e6 {[%clk 0:02:42]} 6. d4 {[%clk 0:02:53]}  Be7 {[%clk 0:02:33]} 7. Re1 {[%clk 0:02:49]}  d5 {[%clk 0:02:27]} 8. Ne5 {[%clk 0:02:47]}  cxd4 {[%clk 0:02:08]} 9. Qxd4 {[%clk 0:02:44]}  Nf6 {[%clk 0:01:55]} 10. Nc3 {[%clk 0:02:43]}  O-O {[%clk 0:01:51]} 11. h4 {[%clk 0:02:41]}  Nc6 {[%clk 0:01:51]} 12. Nxc6 {[%clk 0:02:40]}  bxc6 {[%clk 0:01:52]} 13. Bf4 {[%clk 0:02:35]}  c5 {[%clk 0:01:48]} 14. Qd2 {[%clk 0:02:32]}  Bd6 {[%clk 0:01:44]} 15. Nxd5 {[%clk 0:02:26]}  exd5 {[%clk 0:01:34]} 16. Bxd5 {[%clk 0:02:23]}  Bxf4 {[%clk 0:01:27]} 0-1


[Site "https://www.chess.com"]

[Event "Titled Tuesday Blitz August 1 Late 2023"]
[White "Tarnowska, Aleksandra"]
[Black "Georg, Heinz"]
[WhiteFideId "1180967"]
[BlackFideId "4607295"]
[WhiteElo "2152"]
[BlackElo "2290"]
[Result "1-0"]
[Round "11"]
[TimeControl "180+1"]
[Date "2023.08.01"]
[WhiteClock "0:00:14"]
[BlackClock "0:00:03"]
[Board "103"]

1. e4 {[%clk 0:03:00]}  c5 {[%clk 0:02:50]} 2. Nf3 {[%clk 0:03:00]}  Nc6 {[%clk 0:02:50]} 3. Bb5 {[%clk 0:03:00]}  Nf6 {[%clk 0:02:49]} 4. e5 {[%clk 0:03:00]}  Ng4 {[%clk 0:02:48]} 5. Bxc6 {[%clk 0:02:57]}  bxc6 {[%clk 0:02:47]} 6. h3 {[%clk 0:02:55]}  Nh6 {[%clk 0:02:47]} 7. O-O {[%clk 0:02:52]}  g6 {[%clk 0:02:45]} 8. d3 {[%clk 0:02:48]}  Bg7 {[%clk 0:02:45]} 9. Nc3 {[%clk 0:02:47]}  Nf5 {[%clk 0:02:44]} 10. Ne4 {[%clk 0:02:43]}  d6 {[%clk 0:02:37]} 11. Bf4 {[%clk 0:02:37]}  d5 {[%clk 0:02:19]} 12. Nxc5 {[%clk 0:02:35]}  Qb6 {[%clk 0:02:09]} 13. Nb3 {[%clk 0:02:26]}  O-O {[%clk 0:01:59]} 14. d4 {[%clk 0:02:18]}  Ba6 {[%clk 0:01:51]} 15. Re1 {[%clk 0:02:17]}  e6 {[%clk 0:01:51]} 16. Bg5 {[%clk 0:02:08]}  h6 {[%clk 0:01:48]} 17. Be3 {[%clk 0:01:59]}  Bc4 {[%clk 0:01:38]} 18. Qd2 {[%clk 0:01:50]}  Nxe3 {[%clk 0:01:35]} 19. Rxe3 {[%clk 0:01:49]}  Rad8 {[%clk 0:01:17]} 20. Qa5 {[%clk 0:01:34]}  Rfe8 {[%clk 0:00:57]} 21. Qxb6 {[%clk 0:01:31]}  axb6 {[%clk 0:00:58]} 22. Nfd2 {[%clk 0:01:31]}  Ba6 {[%clk 0:00:57]} 23. a3 {[%clk 0:01:22]}  Rc8 {[%clk 0:00:56]} 24. c3 {[%clk 0:01:20]}  c5 {[%clk 0:00:56]} 25. f4 {[%clk 0:01:18]}  Rc7 {[%clk 0:00:45]} 26. g4 {[%clk 0:01:11]}  h5 {[%clk 0:00:41]} 27. Kf2 {[%clk 0:01:10]}  hxg4 {[%clk 0:00:34]} 28. hxg4 {[%clk 0:01:11]}  Kf8 {[%clk 0:00:33]} 29. Rh1 {[%clk 0:01:03]}  Ke7 {[%clk 0:00:32]} 30. Rh7 {[%clk 0:01:02]}  Rg8 {[%clk 0:00:32]} 31. Nf3 {[%clk 0:00:56]}  Kf8 {[%clk 0:00:30]} 32. Ng5 {[%clk 0:00:53]}  Rh8 {[%clk 0:00:28]} 33. Reh3 {[%clk 0:00:48]}  Rxh7 {[%clk 0:00:26]} 34. Nxh7+ {[%clk 0:00:48]}  Ke7 {[%clk 0:00:20]} 35. Ng5 {[%clk 0:00:43]}  Rc8 {[%clk 0:00:18]} 36. Rh7 {[%clk 0:00:43]}  Rg8 {[%clk 0:00:18]} 37. dxc5 {[%clk 0:00:42]}  Bc4 {[%clk 0:00:15]} 38. Nd4 {[%clk 0:00:40]}  bxc5 {[%clk 0:00:15]} 39. Nc6+ {[%clk 0:00:38]}  Kd7 {[%clk 0:00:14]} 40. Na5 {[%clk 0:00:36]}  Bb5 {[%clk 0:00:13]} 41. Nxf7 {[%clk 0:00:36]}  Kc7 {[%clk 0:00:10]} 42. Ng5 {[%clk 0:00:34]}  Bd7 {[%clk 0:00:09]} 43. Nb3 {[%clk 0:00:32]}  Kc6 {[%clk 0:00:07]} 44. Ke3 {[%clk 0:00:28]}  Bf8 {[%clk 0:00:05]} 45. Nxc5 {[%clk 0:00:22]}  Bxc5+ {[%clk 0:00:05]} 46. Kf3 {[%clk 0:00:19]}  Rb8 {[%clk 0:00:05]} 47. b4 {[%clk 0:00:19]}  Ba7 {[%clk 0:00:05]} 48. Nf7 {[%clk 0:00:19]}  d4 {[%clk 0:00:05]} 49. cxd4 {[%clk 0:00:18]}  Bxd4 {[%clk 0:00:06]} 50. Nd6 {[%clk 0:00:18]}  Ra8 {[%clk 0:00:05]} 51. Nc4 {[%clk 0:00:17]}  Ra7 {[%clk 0:00:03]} 52. Ke4 {[%clk 0:00:17]}  Kb5 {[%clk 0:00:03]} 53. Kxd4 {[%clk 0:00:17]}  Bc6 {[%clk 0:00:03]} 54. Rxa7 {[%clk 0:00:15]}  Bd5 {[%clk 0:00:03]} 55. Nd6+ {[%clk 0:00:15]}  Kc6 {[%clk 0:00:03]} 56. Ra6+ {[%clk 0:00:15]}  Kc7 {[%clk 0:00:03]} 57. b5 {[%clk 0:00:15]}  Bb7 {[%clk 0:00:03]} 58. Ra4 {[%clk 0:00:14]}  Bd5 {[%clk 0:00:03]} 59. Rb4 {[%clk 0:00:14]}  Kb6 {[%clk 0:00:03]} 60. a4 {[%clk 0:00:15]}  Ka5 {[%clk 0:00:03]} 61. Rb2 {[%clk 0:00:13]}  Kb6 {[%clk 0:00:04]} 62. Nc4+ {[%clk 0:00:11]}  Kb7 {[%clk 0:00:03]} 63. a5 {[%clk 0:00:11]}  Kc7 {[%clk 0:00:03]} 64. a6 {[%clk 0:00:11]}  Kb8 {[%clk 0:00:04]} 65. b6 {[%clk 0:00:11]}  Kc8 {[%clk 0:00:03]} 66. Nd6+ {[%clk 0:00:11]}  Kd7 {[%clk 0:00:03]} 67. Kc5 {[%clk 0:00:12]}  Ke7 {[%clk 0:00:03]} 68. b7 {[%clk 0:00:13]}  Bxb7 {[%clk 0:00:02]} 69. axb7 {[%clk 0:00:13]}  g5 {[%clk 0:00:03]} 70. b8=Q {[%clk 0:00:14]}  gxf4 {[%clk 0:00:03]} 71. Qe8# {[%clk 0:00:14]} 1-0


[Site "https://www.chess.com"]

[Event "Titled Tuesday Blitz August 1 Late 2023"]
[White "Harshal, Shahi"]
[Black "dorpato"]
[WhiteFideId "5048257"]
[WhiteElo "2290"]
[BlackElo "2051"]
[Result "1-0"]
[Round "11"]
[TimeControl "180+1"]
[Date "2023.08.01"]
[WhiteClock "0:00:20"]
[BlackClock "0:00:00"]
[Board "104"]

1. e4 {[%clk 0:03:00]}  c5 {[%clk 0:02:59]} 2. Nf3 {[%clk 0:03:01]}  d6 {[%clk 0:02:57]} 3. d4 {[%clk 0:03:01]}  cxd4 {[%clk 0:02:58]} 4. Nxd4 {[%clk 0:03:02]}  Nf6 {[%clk 0:02:57]} 5. Nc3 {[%clk 0:03:02]}  a6 {[%clk 0:02:55]} 6. Bg5 {[%clk 0:03:03]}  e6 {[%clk 0:02:53]} 7. f4 {[%clk 0:03:01]}  Be7 {[%clk 0:02:50]} 8. Qf3 {[%clk 0:02:59]}  Qc7 {[%clk 0:02:48]} 9. Bd3 {[%clk 0:02:59]}  Nc6 {[%clk 0:02:40]} 10. Nxc6 {[%clk 0:02:42]}  bxc6 {[%clk 0:02:37]} 11. O-O {[%clk 0:02:41]}  O-O {[%clk 0:02:35]} 12. Kh1 {[%clk 0:02:33]}  Bb7 {[%clk 0:02:21]} 13. Qh3 {[%clk 0:02:31]}  h6 {[%clk 0:02:06]} 14. e5 {[%clk 0:02:23]}  dxe5 {[%clk 0:02:01]} 15. fxe5 {[%clk 0:02:23]}  Qxe5 {[%clk 0:01:39]} 16. Bxh6 {[%clk 0:02:23]}  Qh5 {[%clk 0:01:04]} 17. Qxh5 {[%clk 0:01:59]}  Nxh5 {[%clk 0:01:02]} 18. Be3 {[%clk 0:01:57]}  Nf6 {[%clk 0:00:38]} 19. Na4 {[%clk 0:01:52]}  Nd5 {[%clk 0:00:35]} 20. Bc5 {[%clk 0:01:51]}  a5 {[%clk 0:00:26]} 21. Bxe7 {[%clk 0:01:48]}  Nxe7 {[%clk 0:00:19]} 22. Nc5 {[%clk 0:01:47]}  Bc8 {[%clk 0:00:17]} 23. a4 {[%clk 0:01:42]}  Nd5 {[%clk 0:00:17]} 24. c3 {[%clk 0:01:36]}  Rb8 {[%clk 0:00:16]} 25. b3 {[%clk 0:01:33]}  Nxc3 {[%clk 0:00:15]} 26. Rac1 {[%clk 0:01:32]}  Nd5 {[%clk 0:00:14]} 27. Rf3 {[%clk 0:01:29]}  Nb4 {[%clk 0:00:14]} 28. Bc4 {[%clk 0:01:26]}  e5 {[%clk 0:00:12]} 29. Re1 {[%clk 0:00:39]}  e4 {[%clk 0:00:03]} 30. Rxe4 {[%clk 0:00:37]}  Nd5 {[%clk 0:00:03]} 31. Rh4 {[%clk 0:00:28]}  Be6 {[%clk 0:00:02]} 32. Re4 {[%clk 0:00:25]}  Nf4 {[%clk 0:00:02]} 33. Nxe6 {[%clk 0:00:23]}  Nxe6 {[%clk 0:00:02]} 34. Rxe6 {[%clk 0:00:20]}  fxe6 {[%clk 0:00:03]} 35. Bxe6+ {[%clk 0:00:21]}  Kh7 {[%clk 0:00:03]} 36. Rh3+ {[%clk 0:00:21]}  Kg6 {[%clk 0:00:03]} 37. Kg1 {[%clk 0:00:21]}  Kf6 {[%clk 0:00:03]} 38. Bc4 {[%clk 0:00:21]}  Rbd8 {[%clk 0:00:03]} 39. Rf3+ {[%clk 0:00:21]}  Kg6 {[%clk 0:00:03]} 40. Rg3+ {[%clk 0:00:21]}  Kh6 {[%clk 0:00:04]} 41. Rh3+ {[%clk 0:00:21]}  Kg6 {[%clk 0:00:04]} 42. Rg3+ {[%clk 0:00:22]}  Kf6 {[%clk 0:00:05]} 43. Re3 {[%clk 0:00:22]}  Rd1+ {[%clk 0:00:04]} 44. Kf2 {[%clk 0:00:22]}  Kg5+ {[%clk 0:00:04]} 45. Kg3 {[%clk 0:00:22]}  Rdf1 {[%clk 0:00:05]} 46. Re5+ {[%clk 0:00:22]}  R1f5 {[%clk 0:00:05]} 47. h4+ {[%clk 0:00:21]}  Kg6 {[%clk 0:00:05]} 48. Bd3 {[%clk 0:00:21]}  Rf6 {[%clk 0:00:03]} 49. Kg4 {[%clk 0:00:21]}  c5 {[%clk 0:00:02]} 50. h5+ {[%clk 0:00:20]}  Kh6 {[%clk 0:00:02]} 51. Bxf5 {[%clk 0:00:20]}  g5 {[%clk 0:00:02]} 52. Re6 {[%clk 0:00:19]}  Rxe6 {[%clk 0:00:00]} 53. Bxe6 {[%clk 0:00:20]} 1-0


[Site "https://www.chess.com"]